fUST/lending_fUST_20240805
["ID","MTS","AMOUNT","RATE_DAILY","PERIOD"]
[334232503,1722851058106,-340.20812402,0.00041095,31]
[334232504,1722851058157,-500.0,0.00041095,31]
[334232505,1722851058210,-500.0,0.00041095,31]
[334232506,1722851058265,-500.0,0.00041095,31]
[334232507,1722851058319,-500.0,0.00041095,31]
[334232508,1722851058370,-500.0,0.00041095,31]
[334232509,1722851058427,-500.0,0.00041095,31]
[334232510,1722851058483,-500.0,0.00041095,31]
[334232511,1722851058533,-518.82,0.00041095,31]
[334232512,1722851058585,-500.0,0.00041095,31]
[334232513,1722851058641,-500.0,0.00041095,31]
[334232514,1722851058693,-500.0,0.00041095,31]
[334232515,1722851058744,-500.0,0.00041095,31]
[334232516,1722851058793,-500.0,0.00041095,31]
[334232517,1722851058844,-299.44864472,0.00041095,31]
[334232518,1722851058895,-508.8009674,0.00041095,31]
[334232519,1722851058949,-500.0,0.00041095,31]
[334232520,1722851059003,-500.0,0.00041095,31]
[334232521,1722851059059,-500.0,0.00041095,31]
[334232522,1722851059116,-500.0,0.00041095,31]
[334232523,1722851059179,-500.0,0.00041095,31]
[334232524,1722851059231,-500.0,0.00041095,31]
[334232525,1722851059281,-500.0,0.00041095,31]
[334232526,1722851059331,-500.0,0.00041095,31]
[334232527,1722851059388,-500.0,0.00041095,31]
[334232528,1722851059440,-500.0,0.00041095,31]
[334232529,1722851059497,-500.0,0.00041095,31]
[334232530,1722851059548,-504.76280093,0.00041095,31]
[334232531,1722851059602,-500.0,0.00041095,31]
[334232532,1722851059655,-500.0,0.00041095,31]
[334232533,1722851059706,-500.0,0.00041095,31]
[334232534,1722851059759,-500.0,0.00041095,31]
[334232535,1722851059811,-500.0,0.00041095,31]
[334232536,1722851059863,-500.0,0.00041095,31]
[334232537,1722851059915,-500.0,0.00041095,31]
[334232538,1722851059964,-516.75846313,0.00041095,31]
[334232539,1722851060016,-500.0,0.00041095,31]
[334232540,1722851060066,-500.0,0.00041095,31]
[334232541,1722851060112,-500.0,0.00041095,31]
[334232542,1722851060168,-397.86317743,0.00041095,31]
[334232543,1722851060218,-500.0,0.00041095,31]
[334232544,1722851060266,-500.0,0.00041095,31]
[334232545,1722851060313,-500.0,0.00041095,31]
[334232546,1722851060359,-518.91073501,0.00041095,31]
[334232547,1722851060411,-500.0,0.00041095,31]
[334232548,1722851060459,-500.0,0.00041095,31]
[334232549,1722851060506,-500.0,0.00041095,31]
[334232550,1722851060554,-500.0,0.00041095,31]
[334232551,1722851060602,-500.0,0.00041095,31]
[334232552,1722851060653,-500.0,0.00041095,31]
[334232553,1722851060705,-500.0,0.00041095,31]
[334232554,1722851060755,-500.0,0.00041095,31]
[334232555,1722851060803,-500.0,0.00041095,31]
[334232556,1722851060851,-559.01801926,0.00041095,31]
[334232557,1722851060899,-500.0,0.00041095,31]
[334232558,1722851060944,-500.0,0.00041095,31]
[334232559,1722851060989,-500.0,0.00041095,31]
[334232560,1722851061034,-500.0,0.00041095,31]
[334232561,1722851061218,-500.0,0.00041095,31]
[334232562,1722851061266,-500.0,0.00041095,31]
[334232563,1722851061311,-319.48805304,0.00041095,31]
[334232564,1722851061360,-500.0,0.00041095,31]
[334232565,1722851061414,-440.78031759,0.00041095,31]
[334232566,1722851061466,-3958.33,0.00041095,31]
[334232567,1722851061515,-457.1039016,0.00041095,31]
[334232568,1722851061566,-500.0,0.00041095,31]
[334232569,1722851061618,-500.0,0.00041095,31]
[334232570,1722851061670,-387.12051068,0.00041095,31]
[334232571,1722851061719,-500.0,0.00041095,31]
[334232572,1722851061768,-500.0,0.00041095,31]
[334232573,1722851061817,-348.02151743,0.00041095,31]
[334232574,1722851061865,-647.77443633,0.00041095,31]
[334232575,1722851061915,-785.62,0.00041095,31]
[334232576,1722851061964,-500.0,0.00041095,31]
[334232577,1722851062013,-328.17737835,0.00041095,31]
[334232578,1722851062061,-500.0,0.00041095,31]
[334232579,1722851062112,-500.0,0.00041095,31]
[334232580,1722851062176,-500.0,0.00041095,31]
[334232581,1722851062235,-500.0,0.00041095,31]
[334232582,1722851062296,-636.80051138,0.00041095,31]
[334232583,1722851062354,-500.0,0.00041095,31]
[334232584,1722851062412,-500.0,0.00041095,31]
[334232585,1722851062467,-500.0,0.00041095,31]
[334232586,1722851062521,-500.0,0.00041095,31]
[334232587,1722851062578,-500.0,0.00041095,31]
[334232588,1722851062640,-505.08837616,0.00041095,31]
[334232589,1722851062691,-500.0,0.00041095,31]
[334232590,1722851062738,-500.0,0.00041095,31]
[334232591,1722851062786,-500.0,0.00041095,31]
[334232592,1722851062832,-500.0,0.00041095,31]
[334232593,1722851062889,-500.0,0.00041095,31]
[334232594,1722851062939,-500.0,0.00041095,31]
[334232595,1722851062987,-500.0,0.00041095,31]
[334232596,1722851063036,-500.0,0.00041095,31]
[334232597,1722851063086,-500.0,0.00041095,31]
[334232598,1722851063136,-500.0,0.00041095,31]
[334232599,1722851063183,-500.0,0.00041095,31]
[334232600,1722851063233,-500.0,0.00041095,31]
[334232601,1722851063285,-500.0,0.00041095,31]
[334232602,1722851063338,-500.0,0.00041095,31]
[334232603,1722851063390,-500.0,0.00041095,31]
[334232604,1722851063446,-500.0,0.00041095,31]
[334232605,1722851063499,-552.74,0.00041095,31]
[334232606,1722851063553,-500.0,0.00041095,31]
[334232607,1722851063607,-500.0,0.00041095,31]
[334232608,1722851063659,-535.97,0.00041095,31]
[334232609,1722851063711,-500.0,0.00041095,31]
[334232610,1722851063769,-500.0,0.00041095,31]
[334232611,1722851063824,-500.0,0.00041095,31]
[334232612,1722851063887,-648.63,0.00041095,31]
[334232613,1722851063947,-500.0,0.00041095,31]
[334232614,1722851064004,-500.0,0.00041095,31]
[334232615,1722851064059,-500.0,0.00041095,31]
[334232616,1722851064115,-500.0,0.00041095,31]
[334232617,1722851064168,-500.0,0.00041095,31]
[334232618,1722851064219,-500.0,0.00041095,31]
[334232619,1722851064270,-500.0,0.00041095,31]
[334232620,1722851064321,-500.0,0.00041095,31]
[334232621,1722851064372,-500.0,0.00041095,31]
[334232622,1722851064429,-500.0,0.00041095,31]
[334232623,1722851064610,-432.61183648,0.00041095,31]
[334232624,1722851064671,-602.44,0.00041095,31]
[334232625,1722851064725,-500.0,0.00041095,31]
[334232626,1722851064780,-500.0,0.00041095,31]
[334232627,1722851064834,-500.0,0.00041095,31]
[334232628,1722851064886,-500.0,0.00041095,31]
[334232629,1722851064936,-500.0,0.00041095,31]
[334232630,1722851064990,-500.0,0.00041095,31]
[334232631,1722851065044,-500.0,0.00041095,31]
[334232632,1722851065096,-500.0,0.00041095,31]
[334232633,1722851065149,-500.0,0.00041095,31]
[334232634,1722851065201,-500.0,0.00041095,31]
[334232635,1722851065251,-500.0,0.00041095,31]
[334232636,1722851065300,-500.0,0.00041095,31]
[334232637,1722851065351,-562.17971439,0.00041095,31]
[334232638,1722851065402,-304.25199466,0.00041095,31]
[334232639,1722851065459,-500.0,0.00041095,31]
[334232640,1722851065514,-614.71,0.00041095,31]
[334232641,1722851065568,-518.20549789,0.00041095,31]
[334232642,1722851065620,-500.0,0.00041095,31]
[334232643,1722851065679,-500.0,0.00041095,31]
[334232644,1722851065729,-500.0,0.00041095,31]
[334232645,1722851065781,-500.0,0.00041095,31]
[334232646,1722851065836,-500.0,0.00041095,31]
[334232647,1722851065888,-500.0,0.00041095,31]
[334232648,1722851065938,-500.0,0.00041095,31]
[334232649,1722851065989,-500.0,0.00041095,31]
[334232650,1722851066038,-500.0,0.00041095,31]
[334232651,1722851066086,-500.0,0.00041095,31]
[334232652,1722851066137,-500.0,0.00041095,31]
[334232653,1722851066188,-500.0,0.00041095,31]
[334232654,1722851066236,-500.0,0.00041095,31]
[334232655,1722851066286,-500.0,0.00041095,31]
[334232656,1722851066338,-500.0,0.00041095,31]
[334232657,1722851066393,-500.0,0.00041095,31]
[334232658,1722851066454,-500.0,0.00041095,31]
[334232659,1722851066512,-500.0,0.00041095,31]
[334232660,1722851066565,-500.0,0.00041095,31]
[334232661,1722851066616,-500.0,0.00041095,31]
[334232662,1722851066675,-500.0,0.00041095,31]
[334232663,1722851066724,-510.95158066,0.00041095,31]
[334232664,1722851066772,-500.0,0.00041095,31]
[334232665,1722851066817,-500.0,0.00041095,31]
[334232666,1722851066865,-500.0,0.00041095,31]
[334232667,1722851066918,-500.0,0.00041095,31]
[334232668,1722851066965,-500.0,0.00041095,31]
[334232669,1722851067012,-500.0,0.00041095,31]
[334232670,1722851067060,-500.0,0.00041095,31]
[334232671,1722851067113,-500.0,0.00041095,31]
[334232672,1722851067169,-500.0,0.00041095,31]
[334232673,1722851067220,-500.0,0.00041095,31]
[334232674,1722851067269,-503.37684485,0.00041095,31]
[334232675,1722851067320,-546.47480144,0.00041095,31]
[334232676,1722851067370,-500.0,0.00041095,31]
[334232677,1722851067426,-502.69746261,0.00041095,31]
[334232678,1722851067495,-500.0,0.00041095,31]
[334232679,1722851067568,-500.0,0.00041095,31]
[334232680,1722851067618,-500.0,0.00041095,31]
[334232681,1722851067674,-500.0,0.00041095,31]
[334232682,1722851067723,-500.0,0.00041095,31]
[334232683,1722851067891,-500.0,0.00041095,31]
[334232684,1722851067947,-500.0,0.00041095,31]
[334232685,1722851067999,-500.0,0.00041095,31]
[334232686,1722851068048,-500.0,0.00041095,31]
[334232687,1722851068098,-500.0,0.00041095,31]
[334232688,1722851068145,-500.0,0.00041095,31]
[334232689,1722851068192,-500.0,0.00041095,31]
[334232690,1722851068238,-500.0,0.00041095,31]
[334232691,1722851068288,-516.56378217,0.00041095,31]
[334232692,1722851068335,-500.0,0.00041095,31]
[334232693,1722851068390,-500.0,0.00041095,31]
[334232694,1722851068441,-500.0,0.00041095,31]
[334232695,1722851068490,-500.0,0.00041095,31]
[334232696,1722851068540,-500.0,0.00041095,31]
[334232697,1722851068590,-500.0,0.00041095,31]
[334232698,1722851068642,-500.0,0.00041095,31]
[334232699,1722851068690,-519.18528221,0.00041095,31]
[334232700,1722851068741,-357.04640705,0.00041095,31]
[334232701,1722851068794,-500.0,0.00041095,31]
[334232702,1722851068845,-500.0,0.00041095,31]
[334232703,1722851068895,-500.0,0.00041095,31]
[334232704,1722851068944,-500.0,0.00041095,31]
[334232705,1722851068997,-500.0,0.00041095,31]
[334232706,1722851069052,-500.0,0.00041095,31]
[334232707,1722851069103,-726.33,0.00041095,31]
[334232708,1722851069153,-500.0,0.00041095,31]
[334232709,1722851069200,-500.0,0.00041095,31]
[334232710,1722851069250,-500.0,0.00041095,31]
[334232711,1722851069300,-500.0,0.00041095,31]
[334232712,1722851069352,-500.0,0.00041095,31]
[334232713,1722851069408,-500.0,0.00041095,31]
[334232714,1722851069470,-500.0,0.00041095,31]
[334232715,1722851069527,-500.0,0.00041095,31]
[334232716,1722851069584,-500.0,0.00041095,31]
[334232717,1722851069640,-547.28,0.00041095,31]
[334232718,1722851069693,-500.0,0.00041095,31]
[334232719,1722851069747,-500.0,0.00041095,31]
[334232720,1722851069805,-500.0,0.00041095,31]
[334232721,1722851069863,-500.0,0.00041095,31]
[334232722,1722851069924,-500.0,0.00041095,31]
[334232723,1722851069978,-500.0,0.00041095,31]
[334232724,1722851070034,-500.0,0.00041095,31]
[334232725,1722851070083,-500.0,0.00041095,31]
[334232726,1722851070136,-500.0,0.00041095,31]
[334232727,1722851070185,-500.0,0.00041095,31]
[334232728,1722851070233,-500.0,0.00041095,31]
[334232729,1722851070283,-587.01418577,0.00041095,31]
[334232730,1722851070330,-500.0,0.00041095,31]
[334232731,1722851070383,-602.17,0.00041095,31]
[334232732,1722851070444,-500.0,0.00041095,31]
[334232733,1722851070506,-500.0,0.00041095,31]
[334232734,1722851070562,-500.0,0.00041095,31]
[334232735,1722851070623,-500.0,0.00041095,31]
[334232736,1722851070693,-500.0,0.00041095,31]
[334232737,1722851070752,-485.0,0.00041095,31]
[334232738,1722851070806,-500.0,0.00041095,31]
[334232739,1722851070859,-500.0,0.00041095,30]
[334232740,1722851071030,-1000.0,0.00041095,90]
[334232741,1722851071087,-1000.0,0.00041095,30]
[334232742,1722851071143,-500.0,0.00041095,31]
[334232743,1722851071192,-500.0,0.00041095,31]
[334232744,1722851071246,-500.0,0.00041095,31]
[334232745,1722851071301,-500.0,0.00041095,31]
[334232746,1722851071360,-435.47384145,0.00041095,31]
[334232747,1722851071415,-500.0,0.00041095,31]
[334232748,1722851071474,-1848.5,0.00041095,31]
[334232749,1722851071538,-19912.26,0.00041095,120]
[334232750,1722851071593,-501.05813438,0.00041095,31]
[334232751,1722851071649,-500.0,0.00041095,31]
[334232752,1722851071702,-500.0,0.00041095,31]
[334232753,1722851071753,-500.0,0.00041095,31]
[334232754,1722851071803,-188.58960127,0.00041095,31]
[334232755,1722851071854,-2106.15,0.00041095,31]
[334232756,1722851072360,151.0,0.0003,120]
[334232757,1722851072433,151.0,0.00031534,120]
[334232758,1722851072507,151.0,0.00033068,120]
[334232759,1722851072595,151.0,0.00034603,120]
[334232760,1722851072711,151.0,0.00036137,120]
[334232761,1722851072787,151.0,0.00037671,120]
[334232762,1722851072982,151.0,0.00039205,120]
[334232763,1722851073077,151.0,0.0004074,120]
[334232764,1722851073334,235.86991462,0.00041095,31]
[334232765,1722851074244,154.80649189,0.00041095,30]
[334232766,1722851074746,10587.87307826,0.00041095,120]
[334232767,1722851075233,3787.21763805,0.00025,30]
[334232768,1722851079878,10587.87307826,0.00041095,120]
[334232769,1722851082866,319.85,0.000362,30]
[334232770,1722851082936,319.85,0.0004,30]
[334232771,1722851084631,19082.58,0.00041095,120]
[334232772,1722851092367,69017.04487766,0.00041095,120]
[334232900,1722851438906,-7775.14481469,0.00015712,2]
[334232901,1722851438917,-2278.204521,0.00015952,3]
[334232902,1722851438928,-300.0,0.00015953,2]
[334232903,1722851438938,-1438.29474334,0.00016038,2]
[334232904,1722851438952,-420.0,0.00017548,2]
[334232905,1722851438968,-42341.71391136,0.00018979,2]
[334232906,1722851438986,-250.0,0.00019041,2]
[334232907,1722851439001,-21904.53468543,0.00019046,2]
[334232908,1722851439012,-1162.86940617,0.00019102,2]
[334232909,1722851439030,-1643.15842058,0.00019139,7]
[334232910,1722851439040,-1382.92970052,0.00019147,2]
[334232911,1722851439050,-1794.59755427,0.00019155,2]
[334232912,1722851439059,-277.18370616,0.00019155,2]
[334232913,1722851439068,-3087.63872233,0.00019155,2]
[334232914,1722851439078,-2124.51614001,0.00019155,2]
[334232915,1722851439090,-7001.77703298,0.00019167,2]
[334232916,1722851439100,-1610.68802731,0.00019167,2]
[334232917,1722851439109,-7001.77703298,0.00019167,2]
[334232918,1722851439119,-9642.56191171,0.00019177,2]
[334232919,1722851439128,-183.255487,0.00019178,2]
[334232920,1722851439138,-170.938483,0.00019178,2]
[334232921,1722851439340,-19301.6125157,0.00019246,2]
[334232922,1722851439355,-1991.65402436,0.00019256,2]
[334232923,1722851439364,-1500.0,0.00019256,2]
[334232924,1722851439374,-299.0,0.00019303,2]
[334232925,1722851439383,-2162.60520141,0.00019451,2]
[334232926,1722851439392,-20759.5327798,0.00019451,2]
[334232927,1722851439402,-1148.70666521,0.00019889,2]
[334232928,1722851439411,-162.87800655,0.00019988,2]
[334232929,1722851439421,-500.0,0.00019988,2]
[334232930,1722851439430,-500.0,0.00019988,2]
[334232931,1722851439440,-367.99379267,0.00019988,2]
[334232932,1722851439451,-500.0,0.00019988,2]
[334232933,1722851439460,-500.0,0.00019988,2]
[334232934,1722851439470,-500.0,0.00019988,2]
[334232935,1722851439479,-500.0,0.00019988,2]
[334232936,1722851439489,-500.0,0.00019988,2]
[334232937,1722851439499,-500.0,0.00019988,2]
[334232938,1722851439508,-19301.6125157,0.00019989,2]
[334232939,1722851439526,-156.35315554,0.0002,2]
[334232940,1722851439536,-1363.34392567,0.0002,2]
[334232941,1722851439546,-1632.70804043,0.0002,2]
[334232942,1722851439560,-1392.59479936,0.0002,2]
[334232943,1722851439570,-294.09032939,0.0002,2]
[334232944,1722851439581,-1000.0,0.00021,21]
[334232945,1722851439591,-876.567351,0.00021,2]
[334232946,1722851439601,-16859.87574934,0.00021602,2]
[334232947,1722851439612,-2139.16821494,0.00021602,2]
[334232948,1722851439622,-1715.68394884,0.00021609,2]
[334232949,1722851439631,-309.23934924,0.00021609,2]
[334232950,1722851439642,-178.30906711,0.00021609,2]
[334232951,1722851439653,-318.29934463,0.00021609,2]
[334232952,1722851439662,-318.09201942,0.00021609,2]
[334232953,1722851439672,-1108.76834352,0.00021609,2]
[334232954,1722851439681,-165.53506923,0.00021609,2]
[334232955,1722851439691,-209.17917971,0.00021609,2]
[334232956,1722851439700,-519.59956575,0.00021609,2]
[334232958,1722851439713,-165.4001754,0.00021609,2]
[334232960,1722851439724,-156.02963346,0.00021632,2]
[334232961,1722851439735,-154.74467129,0.00021632,2]
[334232962,1722851439746,-1091.57771247,0.00021632,2]
[334232963,1722851439759,-727.58928536,0.00021632,2]
[334232965,1722851439783,-154.83742071,0.00021632,2]
[334232967,1722851439794,-342.05014288,0.00021632,2]
[334232969,1722851439805,-753.03257937,0.00021632,2]
[334232970,1722851439816,-174.54270234,0.00021632,2]
[334232972,1722851439828,-845.54644341,0.00021632,2]
[334232974,1722851439838,-273.74136062,0.00021632,2]
[334232976,1722851439849,-200.70468564,0.00021632,2]
[334232978,1722851439859,-163.04029587,0.00021632,2]
[334232980,1722851439870,-250.03321412,0.00021632,2]
[334232981,1722851439880,-1763.49757797,0.00021632,2]
[334232983,1722851439891,-280.37012538,0.00021642,2]
[334232985,1722851439901,-154.74467129,0.00021642,2]
[334232987,1722851439912,-19301.6125157,0.00021662,3]
[334232988,1722851439922,-19450.93571425,0.00021672,2]
[334232989,1722851439932,-156.73199194,0.00021805,2]
[334232990,1722851439942,-245.16608057,0.00021805,2]
[334232991,1722851439952,-426.9441554,0.00021805,2]
[334232992,1722851439962,-305.42819777,0.00021805,2]
[334232993,1722851439972,-240.82219567,0.00021805,2]
[334232994,1722851439981,-154.72922386,0.00021916,2]
[334232995,1722851439991,-154.72922386,0.00021916,2]
[334232996,1722851440000,-154.74467129,0.00021916,2]
[334232997,1722851440010,-2889.0,0.0002197,2]
[334232998,1722851440029,-160.54991199,0.00022,2]
[334232999,1722851440039,-881.47696693,0.0002217,2]
[334233000,1722851440049,-200.0,0.00024658,15]
[334233001,1722851440060,-402.3465429,0.00025,2]
[334233002,1722851440069,-189.52144051,0.00025,2]
[334233003,1722851440079,-154.82195475,0.00025,2]
[334233004,1722851440090,-154.80649189,0.00025,2]
[334233005,1722851440100,-1148.70666521,0.00025166,2]
[334233006,1722851440110,-1000.5,0.00026,31]
[334233007,1722851440120,-1127.5,0.00026,31]
[334233008,1722851440130,-179.809206,0.00026572,2]
[334233009,1722851440140,-189.24241,0.00026572,2]
[334233010,1722851440150,-179.809202,0.00026572,2]
[334233011,1722851440160,-189.242408,0.00026572,2]
[334233012,1722851440170,-179.809202,0.00026572,2]
[334233013,1722851440181,-189.242408,0.00026572,2]
[334233014,1722851440191,-180.32,0.000266,31]
[334233015,1722851440200,-180.32,0.000266,31]
[334233016,1722851440210,-180.32,0.000266,31]
[334233017,1722851440220,-180.32,0.000266,31]
[334233018,1722851440230,-180.32,0.000266,31]
[334233019,1722851440240,-180.32,0.000266,31]
[334233020,1722851440251,-180.32,0.000266,31]
[334233021,1722851440261,-180.32,0.000266,31]
[334233022,1722851440279,-180.32,0.000266,31]
[334233023,1722851440288,-180.32,0.000266,31]
[334233024,1722851440298,-180.32,0.000266,31]
[334233025,1722851440307,-180.32,0.000266,31]
[334233026,1722851440316,-180.32,0.000266,31]
[334233027,1722851440326,-180.32,0.000266,31]
[334233028,1722851440336,-180.32,0.000266,31]
[334233029,1722851440346,-180.32,0.000266,31]
[334233030,1722851440356,-180.32,0.000266,31]
[334233031,1722851440365,-180.32,0.000266,31]
[334233032,1722851440375,-180.32,0.000266,31]
[334233033,1722851440384,-180.32,0.000266,31]
[334233034,1722851440394,-921.54042,0.00027397,120]
[334233035,1722851440404,-179.809202,0.00027901,2]
[334233036,1722851440415,-189.242408,0.00027901,2]
[334233037,1722851440424,-179.809202,0.00027901,2]
[334233038,1722851440433,-189.242408,0.00027901,2]
[334233039,1722851440443,-150.112233,0.00028,8]
[334233040,1722851440453,-168.878791,0.00028521,2]
[334233041,1722851440463,-1000.0,0.00029,29]
[334233042,1722851440472,-150.0,0.00029978,14]
[334233043,1722851440482,-150.0,0.00029978,14]
[334233044,1722851440492,-200.0,0.00029978,14]
[334233045,1722851440502,-284.83809153,0.0003,3]
[334233046,1722851440512,-151.0,0.0003,120]
[334233047,1722851440529,-180.32,0.000302,31]
[334233048,1722851440539,-180.32,0.000302,31]
[334233049,1722851440548,-180.32,0.000302,31]
[334233050,1722851440560,-180.32,0.000302,31]
[334233051,1722851440570,-180.32,0.000302,31]
[334233052,1722851440580,-180.32,0.000302,31]
[334233053,1722851440593,-180.32,0.000302,31]
[334233054,1722851440603,-180.32,0.000302,31]
[334233055,1722851440614,-180.32,0.000302,31]
[334233056,1722851440624,-180.32,0.000302,31]
[334233057,1722851440635,-180.32,0.000302,31]
[334233058,1722851440646,-180.32,0.000302,31]
[334233059,1722851440657,-180.32,0.000302,31]
[334233060,1722851440667,-180.32,0.000302,31]
[334233061,1722851440678,-180.32,0.000302,31]
[334233062,1722851440688,-180.32,0.000302,31]
[334233063,1722851440698,-180.32,0.000302,31]
[334233064,1722851440709,-180.32,0.000302,31]
[334233065,1722851440719,-180.32,0.000302,31]
[334233066,1722851440728,-180.32,0.000302,31]
[334233067,1722851440738,-1148.70666521,0.00030442,2]
[334233068,1722851440748,-151.0,0.00031534,120]
[334233069,1722851440758,-921.54042,0.00031963,120]
[334233070,1722851440775,-151.0,0.00033068,120]
[334233071,1722851440785,-180.32,0.000337,31]
[334233072,1722851440795,-180.32,0.000337,31]
[334233073,1722851440806,-180.32,0.000337,31]
[334233074,1722851440817,-180.32,0.000337,31]
[334233075,1722851440827,-180.32,0.000337,31]
[334233076,1722851440838,-180.32,0.000337,31]
[334233077,1722851440849,-180.32,0.000337,31]
[334233078,1722851440859,-180.32,0.000337,31]
[334233079,1722851440869,-180.32,0.000337,31]
[334233080,1722851440878,-180.32,0.000337,31]
[334233081,1722851440888,-180.32,0.000337,31]
[334233082,1722851440898,-180.32,0.000337,31]
[334233083,1722851440909,-180.32,0.000337,31]
[334233084,1722851440918,-180.32,0.000337,31]
[334233085,1722851440928,-180.32,0.000337,31]
[334233086,1722851440937,-180.32,0.000337,31]
[334233087,1722851440947,-180.32,0.000337,31]
[334233088,1722851440957,-180.32,0.000337,31]
[334233089,1722851440966,-180.32,0.000337,31]
[334233090,1722851440976,-180.32,0.000337,31]
[334233091,1722851440986,-151.0,0.00034603,120]
[334233092,1722851440996,-226.6665527,0.00034909,2]
[334233093,1722851441006,-150.112233,0.00035,6]
[334233094,1722851441015,-294.2886399,0.00035046,2]
[334233095,1722851441032,-207.0130742,0.00035046,2]
[334233096,1722851441042,-153.0,0.00035046,2]
[334233097,1722851441052,-294.2886399,0.00035046,2]
[334233098,1722851441062,-207.0130742,0.00035046,2]
[334233099,1722851441071,-292.0344983,0.00035046,2]
[334233100,1722851441081,-206.0890775,0.00035046,2]
[334233101,1722851441091,-57904.8375472,0.00035606,4]
[334233102,1722851441100,-1148.70666521,0.00035719,2]
[334233103,1722851441110,-151.0,0.00036137,120]
[334233104,1722851441120,-921.54042,0.0003653,120]
[334233105,1722851441130,-160.0,0.00036545,3]
[334233106,1722851441140,-180.32,0.000373,31]
[334233107,1722851441150,-180.32,0.000373,31]
[334233108,1722851441161,-180.32,0.000373,31]
[334233109,1722851441171,-180.32,0.000373,31]
[334233110,1722851441181,-180.32,0.000373,31]
[334233111,1722851441191,-180.32,0.000373,31]
[334233112,1722851441200,-180.32,0.000373,31]
[334233113,1722851441210,-180.32,0.000373,31]
[334233114,1722851441220,-180.32,0.000373,31]
[334233115,1722851441230,-180.32,0.000373,31]
[334233116,1722851441240,-180.32,0.000373,31]
[334233117,1722851441249,-180.32,0.000373,31]
[334233118,1722851441259,-180.32,0.000373,31]
[334233119,1722851441277,-180.32,0.000373,31]
[334233120,1722851441286,-180.32,0.000373,31]
[334233121,1722851441296,-180.32,0.000373,31]
[334233122,1722851441307,-180.32,0.000373,31]
[334233123,1722851441317,-180.32,0.000373,31]
[334233124,1722851441326,-180.32,0.000373,31]
[334233125,1722851441336,-180.32,0.000373,31]
[334233126,1722851441345,-151.0,0.00037671,120]
[334233127,1722851441355,-150.0,0.00038233,2]
[334233128,1722851441364,-580.305,0.00038233,2]
[334233129,1722851441373,-1411.0,0.00038233,2]
[334233130,1722851441383,-179.981,0.00038233,2]
[334233131,1722851441392,-151.0,0.00038488,15]
[334233132,1722851441401,-151.0,0.00039205,120]
[334233133,1722851441411,-160.0,0.00039488,4]
[334233134,1722851441421,-10225.15,0.000398,120]
[334233135,1722851441430,-4902.28470425,0.00039956,2]
[334233136,1722851441440,-150.0,0.00039957,2]
[334233137,1722851441449,-200.0,0.0004,2]
[334233138,1722851441460,-463.26292653,0.0004,14]
[334233139,1722851441470,-153.0,0.0004,2]
[334233140,1722851441479,-207.0130742,0.0004,2]
[334233141,1722851441489,-294.2310959,0.00040082,2]
[334233142,1722851441498,-294.15377218,0.00040084,2]